bitfinex/quotes_ETHUSD_20251018
["timestamp","ask_amount","ask_price","bid_price","bid_amount"]
[1760764181370,0.002,3859.8,3859.7,4.49846085]
[1760764183787,0.002,3859.8,3859.7,4.47255211]
[1760764184190,0.002,3859.8,3859.7,4.60135211]
[1760764185672,0.002,3859.8,3859.7,4.16325211]
[1760764185880,0.002,3859.8,3859.7,4.60135211]
[1760764188370,0.002,3859.8,3859.7,4.16325211]
[1760764188578,0.002,3859.8,3859.7,4.60135211]
[1760764192192,0.002,3859.8,3859.7,4.16325211]
[1760764192522,0.002,3859.8,3859.7,3.49878339]
[1760764194969,0.101,3859.8,3859.7,3.49878339]
[1760764197706,0.002,3859.8,3859.7,3.49878339]
[1760764200183,0.002,3859.8,3859.7,0.90790846]
[1760764200378,0.002,3859.8,3859.7,0.77910846]
[1760764200684,0.002,3859.8,3859.7,3.36998339]
[1760764201508,0.174,3859.8,3859.7,3.93368339]
[1760764201816,0.174,3859.8,3859.7,4.58874272]
[1760764202112,0.174,3859.8,3859.7,3.93368339]
[1760764202816,0.002,3859.8,3859.7,3.93368339]
[1760764203520,0.002,3859.8,3859.7,3.95959213]
[1760764203719,1e-08,3859.9,3859.8,2.59080781]
[1760764203933,1e-08,3859.9,3859.8,5.68010781]
[1760764204446,1e-08,3860.2,3860.1,2.59060646]
[1760764204595,1e-08,3860.2,3860.1,2.97871252]
[1760764204799,1e-08,3860.2,3860.1,3.45301252]
[1760764204995,1e-08,3860.2,3860.1,6.1708602]
[1760764205200,1e-08,3860.2,3860.1,7.57201508]
[1760764206028,1e-08,3860.2,3860.1,9.30001508]
[1760764215767,0.2096,3862.0,3860.2,1.728]
[1760764216062,0.2096,3862.0,3861.9,2.589399]
[1760764216278,0.2096,3862.0,3861.9,2.718199]
[1760764216427,0.2096,3862.0,3861.9,2.927799]
[1760764218192,0.1092,3862.0,3861.9,2.927799]
[1760764220350,0.04512854,3862.6,3862.2,2.58914969]
[1760764220747,0.04512854,3862.6,3862.3,2.58913037]
[1760764220946,0.04512854,3862.6,3862.5,0.1288]
[1760764221436,0.04512854,3862.6,3862.5,2.71779676]
[1760764221652,0.04512854,3862.6,3862.5,3.28479676]
[1760764222178,0.14562854,3862.6,3862.5,3.28479676]
[1760764222575,0.14562854,3862.6,3862.5,0.6958]
[1760764223946,0.14562854,3862.6,3862.5,3.28479676]
[1760764225047,0.14562854,3862.6,3862.5,0.6958]
[1760764226765,0.04512854,3862.6,3862.5,3.28479676]
[1760764226932,0.1005,3862.6,3862.5,0.567]
[1760764227336,0.1005,3862.6,3862.5,3.15599676]
[1760764227879,1.728,3863.5,3862.5,0.567]
[1760764228060,2.613,3863.2,3862.6,0.02588929]
[1760764228249,0.099,3863.1,3862.7,2.58881481]
[1760764228441,0.1173,3862.8,3862.5,2.58894572]
[1760764228636,0.0992,3862.7,3862.4,2.58904255]
[1760764228862,0.0992,3862.6,3862.5,2.58895315]
[1760764229164,0.0992,3862.6,3862.5,0.77858678]
[1760764230438,0.0992,3862.6,3862.5,3.36758354]
[1760764231247,0.1173,3862.8,3862.5,0.77858678]
[1760764231448,0.0992,3862.7,3862.5,0.77858678]
[1760764231750,0.0992,3862.6,3862.5,0.77858678]
[1760764234983,0.1173,3862.8,3862.5,0.77858678]
[1760764235285,0.1191,3862.6,3862.5,0.77858678]
[1760764236658,0.002,3862.6,3862.5,0.77858678]
[1760764238765,0.101,3862.6,3862.5,0.77858678]
[1760764239468,0.002,3862.6,3862.5,0.77858678]
[1760764239869,0.101,3862.6,3862.5,0.77858678]
[1760764242362,0.002,3862.6,3862.5,1.20818678]
[1760764242570,0.002,3862.6,3862.5,0.77858678]
[1760764246156,0.101,3862.6,3862.5,0.77858678]
[1760764246351,0.002,3862.6,3862.5,0.77858678]
[1760764247451,2.615,3862.6,3862.5,0.77858678]
[1760764248906,2.615,3862.6,3862.5,3.8230735]
[1760764249279,0.002,3862.6,3862.5,3.8230735]
[1760764249611,2.615,3862.6,3862.5,4.60597267]
[1760764249909,2.615,3862.6,3862.5,4.58008271]
[1760764250488,2.615,3862.6,3862.5,3.92598354]
[1760764253783,2.615,3862.6,3862.5,3.79718354]
[1760764254108,0.002,3862.6,3862.5,3.36758354]
[1760764254307,2.614,3862.6,3862.5,3.79718354]
[1760764257517,2.614,3862.6,3862.5,3.36758354]
[1760764258899,2.614,3862.6,3862.5,0.77858678]
[1760764263718,2.614,3862.6,3862.5,0.90738678]
[1760764264839,2.713,3862.6,3862.5,0.90738678]
[1760764265330,2.614,3862.6,3862.5,0.90738678]
[1760764266726,2.713,3862.6,3862.5,0.90738678]
[1760764267023,2.614,3862.6,3862.5,0.90738678]
[1760764268006,3.0005525,3862.6,3862.5,0.77858678]
[1760764270823,2.614,3862.6,3862.5,0.77858678]
[1760764274250,2.713,3862.6,3862.5,0.77858678]
[1760764274616,2.614,3862.6,3862.5,0.77858678]
[1760764276352,2.713,3862.6,3862.5,0.77858678]
[1760764278647,2.614,3862.6,3862.5,3.36758354]
[1760764279245,2.614,3862.6,3862.5,3.82828354]
[1760764282356,2.614,3862.6,3862.5,3.36758354]
[1760764283054,2.614,3862.6,3862.5,0.77858678]
[1760764283558,2.614,3862.6,3862.5,3.36758354]
[1760764283858,2.614,3862.6,3862.5,0.77858678]
[1760764284958,2.614,3862.6,3862.5,3.36758354]
[1760764285328,2.614,3862.6,3862.5,0.77858678]
[1760764285852,2.614,3862.6,3862.5,3.36758354]
[1760764289732,2.614,3862.6,3862.5,3.80458354]
[1760764289928,0.002,3862.6,3862.5,3.80458354]
[1760764290265,0.657,3862.6,3862.5,4.58822315]
[1760764290759,0.657,3862.6,3862.5,4.45942315]
[1760764291055,0.657,3862.6,3862.5,4.02242315]
[1760764291232,0.657,3862.6,3862.5,4.45942315]
[1760764294774,0.002,3862.6,3862.5,4.45942315]
[1760764296256,0.002,3862.6,3862.5,4.02242315]
[1760764296455,0.002,3862.6,3862.5,3.36758354]
[1760764296953,0.002,3862.6,3862.5,0.77858678]
[1760764297570,0.002,3862.6,3862.5,3.36758354]
[1760764297884,0.002,3862.6,3862.5,0.77858678]
[1760764298444,0.1012,3862.6,3862.5,0.77858678]
[1760764298887,0.002,3862.6,3862.5,0.77858678]
[1760764302682,1.8292,3862.6,3861.4,2.58972551]
[1760764302882,0.0992,3862.5,3861.6,0.4169207]
[1760764303178,0.0992,3862.4,3861.6,0.4169207]
[1760764303381,1.73,3862.6,3861.6,0.4169207]
[1760764303585,0.0992,3862.3,3861.6,0.4169207]
[1760764303787,0.0992,3862.2,3861.6,0.4169207]
[1760764303948,0.0992,3862.1,3861.6,0.4169207]
[1760764304154,2.7102,3862.0,3861.6,0.4169207]
[1760764304354,0.109,3861.9,3861.6,0.4169207]
[1760764304548,0.2083,3861.9,3861.6,0.4169207]
[1760764304964,0.0993,3861.8,3861.1,0.2309]
[1760764305277,0.0993,3861.8,3861.1,3.59968456]
[1760764305649,0.0993,3861.8,3861.1,1.00977382]
[1760764305851,0.0993,3861.8,3861.1,3.59970784]
[1760764307190,0.0993,3861.8,3861.1,2.82083402]
[1760764307357,0.0993,3861.8,3861.2,0.77887382]
[1760764307992,0.0993,3861.8,3861.2,3.36872293]
[1760764308162,0.39093,3861.9,3861.2,3.36872293]
[1760764309076,0.39093,3861.9,3861.1,0.6679]
[1760764309275,0.3146363,3861.8,3861.1,4.03671092]
[1760764309502,0.109,3861.9,3861.1,4.03671092]
[1760764310106,0.109,3861.9,3861.2,2.58984885]
[1760764310312,0.109,3861.9,3861.3,2.5897952]
[1760764310514,2.611,3862.0,3861.3,3.02679508]
[1760764310720,0.04513301,3862.1,3861.1,0.2309]
[1760764310721,0.04513301,3862.1,3861.9,2.5893943]
[1760764310888,0.04513301,3862.1,3862.0,3.02633195]
[1760764311208,2.65713301,3862.1,3862.0,3.02633195]
[1760764311394,2.612,3862.1,3862.0,3.14363195]
[1760764311785,2.612,3862.1,3862.0,0.5543]
[1760764312729,2.612,3862.1,3862.0,3.27243195]
[1760764314110,2.612,3862.1,3862.0,0.6831]
[1760764314912,2.612,3862.1,3862.0,3.27243195]
[1760764315676,2.612,3862.1,3862.0,0.2461]
[1760764315876,2.8777126,3862.1,3862.0,0.2461]
[1760764316411,2.612,3862.1,3862.0,0.2461]
[1760764317311,2.711,3862.1,3862.0,0.1173]
[1760764317512,2.7408,3862.1,3861.5,0.1288]
[1760764320279,2.7408,3862.1,3861.5,2.71843372]
[1760764320483,2.7408,3862.1,3861.5,0.1288]
[1760764320830,2.7408,3862.1,3861.6,0.77882731]
[1760764320993,2.7428,3862.1,3861.6,0.77882731]
[1760764321199,2.7428,3862.1,3861.6,1.23222731]
[1760764321525,2.612,3862.0,3861.6,1.23222731]
[1760764321886,2.612,3862.0,3861.6,0.77882731]
[1760764322084,2.711,3862.0,3861.6,0.77882731]
[1760764322504,2.8192,3862.0,3861.6,0.77882731]
[1760764322688,3.1187126,3862.0,3861.5,0.1288]
[1760764322891,3.1187126,3862.0,3861.5,0.90762731]
[1760764323301,2.612,3862.0,3861.5,0.90762731]
[1760764323625,0.1288,3861.8,3861.2,0.1288]
[1760764323919,0.1288,3861.8,3861.3,0.77888393]
[1760764324839,0.1288,3861.8,3861.3,1.21288393]
[1760764325045,0.1288,3861.8,3861.4,3.02368069]
[1760764325648,2.612,3861.7,3861.5,0.434]
[1760764325811,2.612,3861.7,3861.4,2.58968069]
[1760764326011,2.612,3861.7,3861.5,0.434]
[1760764326616,2.612,3861.6,3861.5,0.434]
[1760764326816,0.1288,3861.8,3861.5,0.434]
[1760764327041,2.612,3861.6,3861.5,0.434]
[1760764329637,2.612,3861.6,3861.5,1.21288393]
[1760764330014,2.612,3861.6,3861.5,0.77888393]
[1760764340242,2.614,3861.6,3861.5,0.77888393]
[1760764340447,2.614,3861.6,3861.5,3.80255115]
[1760764341254,2.614,3861.6,3861.5,1.21288393]
[1760764341462,2.614,3861.6,3861.5,3.82844782]
[1760764341955,2.614,3861.6,3861.5,3.80255115]
[1760764342143,2.614,3861.6,3861.5,3.93135115]
[1760764344217,0.002,3861.6,3861.5,4.58605332]
[1760764344548,2.613,3861.6,3861.5,4.58605332]
[1760764345847,0.002,3861.6,3861.5,4.61194999]
[1760764346015,0.191,3861.6,3861.5,4.61194999]
[1760764346537,0.191,3861.6,3861.5,4.58605332]
[1760764356661,0.191,3861.6,3861.5,4.15205332]
[1760764358333,0.191,3861.6,3861.5,4.60195332]
[1760764358958,0.191,3861.6,3861.5,4.15205332]
[1760764361574,0.191,3861.6,3861.5,4.60195332]
[1760764363696,0.191,3861.6,3861.5,4.15205332]
[1760764363850,0.191,3861.6,3861.5,3.49735115]
[1760764365353,0.191,3861.6,3861.5,0.90768393]
[1760764366497,0.191,3861.6,3861.5,3.49735115]
[1760764366702,0.191,3861.6,3861.5,0.90768393]
[1760764367272,0.191,3861.6,3861.5,3.49735115]
[1760764368455,0.191,3861.6,3861.5,0.90768393]
[1760764371213,0.191,3861.6,3861.5,3.49735115]
[1760764372423,0.191,3861.6,3861.5,0.90768393]
[1760764373140,0.2902,3861.6,3861.5,0.77888393]
[1760764373293,0.59054377,3861.6,3861.5,0.77888393]
[1760764373624,0.63567987,3861.6,3861.5,0.77888393]
[1760764373934,0.1288,3861.5,3860.2,0.001]
[1760764374139,0.16,3860.7,3860.3,0.1288]
[1760764374633,0.2614,3860.7,3860.3,0.1288]
[1760764374837,0.2614,3860.7,3860.6,0.1298]
[1760764375135,0.16,3860.7,3860.6,0.1298]
[1760764378137,0.1014,3860.9,3860.6,0.1298]
[1760764378632,0.2888,3861.0,3860.6,0.001]
[1760764378838,0.2888,3861.0,3860.7,0.2888]
[1760764378998,0.3908,3861.0,3860.7,0.2888]
[1760764381238,0.1288,3861.0,3860.7,0.2888]
[1760764381423,0.1288,3861.0,3860.7,0.7217]
[1760764381729,0.1288,3861.0,3860.6,2.59124537]
[1760764381930,0.1288,3861.0,3860.6,3.02414537]
[1760764382423,0.1288,3861.0,3860.8,0.1288]
[1760764385118,2.611,3860.9,3860.8,0.1288]
[1760764387953,0.04514197,3861.2,3860.8,0.1288]
[1760764388253,0.04514197,3861.2,3861.1,2.82193551]
[1760764388433,0.04514197,3861.2,3861.1,0.74435059]
[1760764388626,0.04514197,3861.2,3861.1,0.1288]
[1760764389049,2.611,3861.3,3861.1,3.49764396]
[1760764389424,2.611,3861.3,3861.1,2.71873374]
[1760764389934,2.611,3861.3,3861.2,0.77891022]
[1760764392346,2.611,3861.3,3861.2,3.36877865]
[1760764392763,2.611,3861.3,3861.2,3.82877865]
[1760764393471,2.611,3861.3,3861.2,0.77891022]
[1760764395553,0.04713443,3861.6,3861.2,0.77891022]
[1760764395554,2.65813443,3861.6,3861.2,3.36872107]
[1760764395855,2.65813443,3861.6,3861.2,0.77891022]
[1760764396046,2.65813443,3861.6,3860.9,2.59006501]
[1760764396047,0.099,3861.5,3860.9,2.59001768]
[1760764396226,0.099,3861.5,3861.2,0.77892842]
[1760764396426,0.37471344,3861.5,3861.2,0.77892842]
[1760764398265,0.27571344,3861.5,3861.2,0.77892842]
[1760764398457,0.37471344,3861.5,3861.2,0.77892842]
[1760764398759,0.27571344,3861.5,3861.2,0.77892842]
[1760764399057,0.04713443,3861.6,3861.2,0.77892842]
[1760764399473,0.04713443,3861.6,3861.2,3.36878721]
[1760764399662,0.04713443,3861.6,3861.2,3.82878721]
[1760764399864,0.04713443,3861.6,3861.2,3.04985879]
[1760764400041,0.04713443,3861.6,3861.3,2.58979362]
[1760764400249,0.04713443,3861.6,3861.3,3.36872204]
[1760764400460,0.04713443,3861.6,3861.3,2.58979362]
[1760764400676,0.04713443,3861.6,3861.5,2.58966722]
[1760764401044,0.04713443,3861.6,3861.5,3.04966722]
[1760764401248,0.04713443,3861.6,3861.5,3.82847634]
[1760764402249,0.002,3861.6,3861.5,4.47029887]
[1760764403050,2.612,3861.6,3861.5,4.47029887]
[1760764404086,2.612,3861.6,3861.5,3.36847634]
[1760764404284,2.612,3861.6,3861.5,3.82847634]
[1760764405591,2.612,3861.6,3861.5,3.95727634]
[1760764420102,2.612,3861.6,3861.5,3.49727634]
[1760764420892,2.612,3861.6,3861.5,3.96277634]
[1760764421094,2.612,3861.6,3861.5,4.61802887]
[1760764425673,0.002,3861.6,3861.5,4.61802887]
[1760764425890,0.002,3861.6,3861.5,4.64392554]
[1760764426084,0.002,3861.6,3861.5,4.17842554]
[1760764426270,0.002,3861.6,3861.5,4.61802887]
[1760764429681,0.002,3861.6,3861.5,4.15252887]
[1760764431591,0.1011,3861.6,3861.5,0.90760912]
[1760764431806,0.1011,3861.6,3861.5,3.49727634]
[1760764432410,0.002,3861.6,3861.5,3.49727634]
[1760764435815,0.002,3861.6,3861.5,5.22527634]
[1760764436335,0.002,3861.6,3861.5,2.63560912]
[1760764436506,0.1011,3861.6,3861.5,0.77880912]
[1760764440133,0.1011,3861.6,3861.5,3.36847634]
[1760764440843,0.002,3861.6,3861.5,3.49727634]
[1760764441750,0.002,3861.6,3861.5,0.90760912]
[1760764444111,0.002,3861.6,3861.5,3.49727634]
[1760764447858,0.002,3861.6,3861.5,0.90760912]
[1760764448067,0.2786132,3861.6,3861.5,0.90760912]
[1760764448262,0.002,3861.6,3861.5,3.49727634]
[1760764448453,0.002,3861.6,3861.5,3.96367634]
[1760764448765,0.002,3861.6,3861.5,3.49727634]
[1760764452669,0.002,3861.6,3861.5,3.96367634]
[1760764452841,0.002,3861.6,3861.5,4.61902266]
[1760764453041,0.002,3861.6,3861.5,6.34702266]
[1760764462977,1e-08,3862.1,3862.0,4.31733195]
[1760764463178,1e-08,3862.1,3862.0,6.92633195]
[1760764463354,1e-08,3862.1,3862.0,8.34430667]
[1760764464281,1e-08,3862.1,3862.0,8.44810531]
[1760764468688,1e-08,3862.1,3862.0,7.98170531]
[1760764468990,1e-08,3862.1,3862.0,5.37270531]
[1760764470988,1e-08,3862.1,3862.0,5.81840531]
[1760764472864,1e-08,3862.1,3862.0,5.94720531]
[1760764473494,1e-08,3862.1,3862.0,8.55520531]
[1760764474814,1e-08,3862.1,3862.0,8.10950531]
[1760764475009,1e-08,3862.1,3862.0,8.55520531]
[1760764482735,0.05320001,3862.6,3862.5,4.31699676]
[1760764483218,0.05320001,3862.6,3862.5,4.44579676]
[1760764483422,0.05320001,3862.6,3862.5,0.2459]
[1760764483609,0.008,3862.9,3862.5,0.2459]
[1760764483803,0.008,3862.9,3862.8,0.1288]
[1760764484122,0.008,3862.9,3862.8,2.71759569]
[1760764484300,0.008,3862.9,3862.8,2.83469569]
[1760764485021,0.0617,3862.9,3862.8,2.83469569]
[1760764488996,0.008,3862.9,3862.8,2.83469569]
[1760764490544,0.0617,3862.9,3862.8,0.2459]
[1760764490933,0.0617,3862.9,3862.8,0.1171]
[1760764491246,0.10682103,3862.9,3862.8,0.1171]
[1760764495041,0.10882103,3862.9,3862.8,0.1171]
[1760764497013,0.05512103,3862.9,3862.8,0.1171]
[1760764497446,0.01,3862.9,3862.8,0.1171]
[1760764497645,0.10881996,3862.9,3862.8,0.1171]
[1760764497949,0.0637,3862.9,3862.8,0.1171]
[1760764498646,0.01,3862.9,3862.8,0.1171]
[1760764498859,0.01,3862.9,3862.8,0.5486]
[1760764499018,0.01,3862.9,3862.8,3.13739569]
[1760764499345,0.01,3862.9,3862.8,2.70589569]
[1760764499865,0.01,3862.9,3862.8,0.1171]
[1760764500349,0.0637,3862.9,3862.8,0.1171]
[1760764501730,0.10882192,3862.9,3862.8,0.1171]
[1760764502114,0.0637,3862.9,3862.8,0.1171]
[1760764503525,0.01,3862.9,3862.8,0.1171]
[1760764505481,0.05512016,3862.9,3862.8,0.1171]
[1760764506539,0.10882016,3862.9,3862.8,0.1171]
[1760764507561,0.0637,3862.9,3862.8,0.1171]
[1760764509170,0.01,3862.9,3862.8,0.1171]
[1760764511475,0.0637,3862.9,3862.8,0.1171]
[1760764512274,0.01,3862.9,3862.8,0.1171]
[1760764515347,0.05511969,3862.9,3862.8,0.5744]
[1760764515675,0.05511969,3862.9,3862.8,3.29199569]
[1760764515873,0.01,3862.9,3862.8,3.88018764]
[1760764516675,0.01,3862.9,3862.8,0.83409195]
[1760764516872,0.01,3862.9,3862.8,0.1171]
[1760764518975,0.05511929,3862.9,3862.8,0.1171]
[1760764519159,0.05511929,3862.9,3862.8,0.5744]
[1760764519481,0.05511929,3862.9,3862.8,3.16319569]
[1760764520248,0.05511929,3862.9,3862.8,0.5744]
[1760764520574,0.04711929,3862.9,3862.8,2.70589569]
[1760764520743,2.65411929,3862.9,3862.8,3.59791701]
[1760764520946,2.65411929,3862.9,3862.8,3.16319569]
[1760764521376,2.65411929,3862.9,3862.8,0.1171]
[1760764525470,2.65411929,3862.9,3862.8,2.70589569]
[1760764525794,2.65411929,3862.9,3862.8,3.29199569]
[1760764526696,2.65411929,3862.9,3862.8,0.2459]
[1760764527170,2.65411929,3862.9,3862.8,3.29199569]
[1760764527964,2.65411929,3862.9,3862.8,3.88277697]
[1760764528165,2.609,3862.9,3862.8,3.88277697]
[1760764529560,2.609,3862.9,3862.8,0.2459]
[1760764530293,2.609,3862.9,3862.8,0.1171]
[1760764531073,2.609,3862.9,3862.8,0.2459]
[1760764531365,2.609,3862.9,3862.8,0.1171]
[1760764536887,2.708,3862.9,3862.8,0.1171]
[1760764537088,2.99881,3862.9,3862.8,0.1171]
[1760764537982,2.89981,3862.9,3862.8,0.1171]
[1760764539414,0.002,3862.9,3862.8,3.16339569]
[1760764545420,0.002,3862.9,3862.8,2.70589569]
[1760764545577,0.002,3862.9,3862.8,3.16339569]
[1760764545787,0.002,3862.9,3862.8,0.1171]
[1760764546306,0.002,3862.9,3862.8,2.70589569]
[1760764547226,0.002,3862.9,3862.8,0.1171]
[1760764547434,0.1715,3862.9,3862.8,0.1171]
[1760764547920,0.1715,3862.9,3862.6,0.001]
[1760764548123,0.1715,3862.9,3862.7,0.1171]
[1760764550654,0.0713,3862.8,3862.7,0.1171]
[1760764551327,0.002,3862.9,3862.7,0.1171]
[1760764551651,0.1288,3862.8,3862.7,0.1171]
[1760764553644,0.17392256,3862.8,3862.7,0.1171]
[1760764554583,0.27292256,3862.8,3862.7,0.1171]
[1760764554747,0.17392256,3862.8,3862.7,0.1171]
[1760764555338,0.27292256,3862.8,3862.7,0.1171]
[1760764557762,0.17392256,3862.8,3862.7,0.1171]
[1760764557975,0.14412256,3862.8,3862.7,0.1171]
[1760764558970,0.04512256,3862.8,3862.7,0.1171]
[1760764559434,0.14412256,3862.8,3862.7,0.1171]
[1760764559856,0.04512256,3862.8,3862.7,0.1171]
[1760764560475,0.14412256,3862.8,3862.7,0.1171]
[1760764561170,0.04512256,3862.8,3862.7,0.1171]
[1760764561547,0.04512256,3862.8,3862.7,0.5913]
[1760764561744,2.607,3862.8,3862.7,3.18016271]
[1760764561944,2.65211919,3862.8,3862.7,3.18016271]
[1760764562150,2.65211919,3862.8,3862.7,3.75717786]
[1760764562346,2.607,3862.8,3862.7,3.75717786]
[1760764568373,2.607,3862.8,3862.7,3.18016271]
[1760764568374,2.557,3862.8,3862.7,3.18016271]
[1760764568578,2.557,3862.8,3862.7,0.1171]
[1760764569072,2.7848,3862.8,3862.7,0.1171]
[1760764570567,2.7848,3862.8,3862.6,0.001]
[1760764570568,2.607,3862.8,3862.6,0.001]
[1760764570783,0.37154226,3862.7,3862.6,0.001]
[1760764571500,0.37154226,3862.7,3862.6,0.10484148]
[1760764575751,0.37154226,3862.7,3862.6,0.001]
[1760764576154,0.41666991,3862.7,3862.6,0.001]
[1760764576569,2.14466991,3862.7,3862.6,0.001]
[1760764576992,5.60371015,3862.7,3862.6,0.001]
[1760764577295,5.91911403,3862.7,3862.6,0.001]
[1760764578284,0.41666991,3862.7,3862.6,0.001]
[1760764578478,3.35879208,3862.7,3862.6,0.001]
[1760764580605,0.65279208,3862.7,3862.6,0.001]
[1760764580898,0.65279208,3862.7,3862.6,0.4567]
[1760764580899,2.61,3862.7,3862.6,0.4567]
[1760764581094,2.7388,3862.7,3862.6,0.4567]
[1760764581301,2.7388,3862.7,3862.6,0.56056224]
[1760764581458,0.1288,3862.7,3862.6,3.14949197]
[1760764581765,2.611,3862.7,3862.6,3.72334712]
[1760764581974,2.611,3862.7,3862.6,1.13441739]
[1760764582391,2.611,3862.7,3862.6,3.72334712]
[1760764584378,2.611,3862.7,3862.6,0.10486224]
[1760764584598,2.7398,3862.7,3862.6,0.10486224]
[1760764585068,2.78492392,3862.7,3862.6,0.10486224]
[1760764590095,4.61192392,3862.7,3862.6,0.10486224]
[1760764590394,4.61192392,3862.7,3862.6,0.001]
[1760764590561,4.5668,3862.7,3862.6,0.001]
[1760764591195,4.4678,3862.7,3862.6,0.001]
[1760764591992,2.7398,3862.7,3862.6,0.001]
[1760764594529,2.78492936,3862.7,3862.6,0.001]
[1760764599116,0.17392936,3862.7,3862.6,0.001]
[1760764599422,2.78392936,3862.7,3862.6,0.001]
[1760764600624,4.61092936,3862.7,3862.6,0.001]
[1760764601118,1.90192936,3862.7,3862.6,0.001]
[1760764601299,4.51292936,3862.7,3862.6,0.442]
[1760764601816,4.51292936,3862.7,3862.6,0.54686224]
[1760764602332,2.78492936,3862.7,3862.6,0.54686224]
[1760764604124,2.78492936,3862.7,3862.6,0.10586224]
[1760764606150,2.78492936,3862.7,3862.6,0.001]
[1760764606448,2.78492936,3862.7,3862.6,0.442]
[1760764608455,2.65612936,3862.7,3862.6,0.001]
[1760764611355,7.42256434,3862.7,3862.6,0.001]
[1760764613053,7.37743498,3862.7,3862.6,0.001]
[1760764615340,7.4225661,3862.7,3862.6,0.001]
[1760764618854,7.3235661,3862.7,3862.6,0.001]
[1760764619046,6.98844393,3862.7,3862.6,0.001]
[1760764621778,4.38513112,3862.7,3862.6,0.001]
[1760764622081,4.38513112,3862.7,3862.6,0.4692]
[1760764622479,4.38513112,3862.7,3862.6,0.001]
[1760764622480,2.60431281,3862.7,3862.6,0.001]
[1760764622778,6.94331281,3862.7,3862.6,0.001]
[1760764623152,4.339,3862.7,3862.6,0.001]
[1760764623748,4.339,3862.7,3862.6,0.4678]
[1760764624173,2.611,3862.7,3862.6,0.4678]
[1760764624761,2.65612537,3862.7,3862.6,0.4678]
[1760764625860,2.78492537,3862.7,3862.6,0.4678]
[1760764626058,2.78492537,3862.7,3862.6,0.001]
[1760764626385,7.11723818,3862.7,3862.6,0.001]
[1760764629622,4.51292537,3862.7,3862.6,0.001]
[1760764629770,2.78492537,3862.7,3862.6,0.4678]
[1760764630710,2.65612537,3862.7,3862.6,3.05672973]
[1760764631009,2.65612537,3862.7,3862.6,3.76298856]
[1760764631169,2.611,3862.7,3862.6,3.76298856]
[1760764631869,0.002,3862.8,3862.7,2.58886271]
[1760764632095,0.002,3862.8,3862.7,3.05566271]
[1760764632672,0.002,3862.8,3862.7,3.08155133]
[1760764632899,0.002,3862.8,3862.7,4.05608137]
[1760764633994,0.002,3862.8,3862.7,4.15899275]
[1760764634502,0.002,3862.8,3862.7,5.88699275]
[1760764641777,0.002,3862.8,3862.7,5.990786]
[1760764649114,0.002,3862.8,3862.7,5.523986]
[1760764649280,0.002,3862.8,3862.7,5.957886]
[1760764651414,0.002,3862.8,3862.7,5.523986]
[1760764653016,0.002,3862.8,3862.7,3.795986]
[1760764654133,0.1728,3862.8,3862.7,0.23259325]
[1760764654306,0.21791841,3862.8,3862.7,0.10379325]
[1760764654511,0.21791841,3862.8,3862.6,0.001]
[1760764654732,2.61,3862.7,3862.6,0.001]
[1760764654934,2.7093,3862.7,3862.6,0.001]
[1760764655343,2.98778,3862.7,3862.6,0.001]
[1760764661554,0.27848,3862.7,3862.6,0.001]
[1760764661753,2.611,3862.7,3862.6,0.001]
[1760764662060,2.71,3862.7,3862.6,0.001]
[1760764664499,2.75512592,3862.7,3862.6,0.001]
[1760764664638,2.65612592,3862.7,3862.6,0.001]
[1760764664845,2.65612592,3862.7,3862.6,0.4349]
[1760764665743,2.65612592,3862.7,3862.6,3.02382973]
[1760764666746,2.65612592,3862.7,3862.6,3.15262973]
[1760764667280,2.65612592,3862.7,3862.6,0.1298]
[1760764668275,2.65612592,3862.7,3862.6,2.71872973]
[1760764668586,2.65612592,3862.7,3862.6,3.15262973]
[1760764669072,0.04512592,3862.7,3862.6,3.67596179]
[1760764669273,2.65512592,3862.7,3862.6,3.80476179]
[1760764671067,2.61,3862.7,3862.6,3.80476179]
[1760764674828,0.002,3862.8,3862.7,2.58886271]
[1760764674985,0.002,3862.8,3862.7,3.02276271]
[1760764675180,0.002,3862.8,3862.7,3.99887526]
[1760764676617,0.002,3862.8,3862.7,4.77734284]
[1760764679522,0.002,3862.8,3862.7,6.50534284]
[1760764681112,0.002,3862.8,3862.7,6.07144284]
[1760764681421,0.002,3862.8,3862.7,3.36733029]
[1760764681621,0.002,3862.8,3862.7,3.86261891]
[1760764681925,0.002,3862.8,3862.7,3.83673029]
[1760764684020,0.002,3862.8,3862.7,3.36733029]
[1760764684211,0.002,3862.8,3862.7,3.80313029]
[1760764684718,0.002,3862.8,3862.7,4.45532034]
[1760764687594,0.002,3862.8,3862.7,6.18332034]
[1760764690727,1e-08,3862.9,3862.8,4.31679569]
[1760764690930,1e-08,3862.9,3862.8,4.34268364]
[1760764691232,1e-08,3862.9,3862.8,4.77848364]
[1760764691423,1e-08,3862.9,3862.8,6.17848106]
[1760764691723,1e-08,3862.9,3862.8,6.15259311]
[1760764692243,1e-08,3862.9,3862.8,6.25636751]
[1760764695143,1e-08,3862.9,3862.8,5.82056751]
[1760764695429,1e-08,3862.9,3862.8,6.25636751]
[1760764696205,1e-08,3862.9,3862.8,5.82056751]
[1760764698918,1e-08,3862.9,3862.8,5.94936751]
[1760764701837,1e-08,3862.9,3862.8,4.54937009]
[1760764701838,0.07360001,3862.9,3862.8,4.54937009]
[1760764702055,0.17260001,3862.9,3862.8,4.54937009]
[1760764702659,0.17260001,3862.9,3862.8,2.82137009]
[1760764705862,1e-08,3862.9,3862.8,2.82137009]
[1760764706036,1e-08,3862.9,3862.8,3.25717009]
[1760764706235,1e-08,3862.9,3862.8,3.84446696]
[1760764707676,1e-08,3862.9,3862.8,5.57246696]
[1760764709869,1e-08,3862.9,3862.8,5.44366696]